[Event "Early-Titled-Tuesday-Blitz-July-09-2024"]
[Site "Chess.com"]
[Date "2024.07.09"]
[Round "9"]
[White "JordanLoyd2020"]
[Black "NikitaShnadrygin"]
[Result "0-1"]
[WhiteElo "2514"]
[BlackElo "2726"]
[TimeControl "180+1"]
[EndTime "9:46:31 PDT"]
[Termination "NikitaShnadrygin won by checkmate"]

1. d4 {[%clk 0:03:00.9]} 1... d5 {[%clk 0:02:58.6]} 2. Nf3 {[%clk 0:02:59.1]}
2... Nc6 {[%clk 0:02:59.5]} 3. Bf4 {[%clk 0:02:57.4]} 3... Bg4 {[%clk
0:02:59.5]} 4. Nbd2 {[%clk 0:02:55.7]} 4... e6 {[%clk 0:02:59.7]} 5. e3 {[%clk
0:02:54.8]} 5... Bd6 {[%clk 0:02:59.9]} 6. c3 {[%clk 0:02:55.3]} 6... Nf6 {[%clk
0:02:59.9]} 7. Bd3 {[%clk 0:02:55.1]} 7... O-O {[%clk 0:03:00]} 8. O-O {[%clk
0:02:54.6]} 8... Qe7 {[%clk 0:02:57.5]} 9. h3 {[%clk 0:02:51.1]} 9... Bh5 {[%clk
0:02:56.7]} 10. Qb3 {[%clk 0:02:51.6]} 10... Rab8 {[%clk 0:02:51.4]} 11. Rae1
{[%clk 0:02:22.4]} 11... Rfe8 {[%clk 0:02:34.8]} 12. Bg5 {[%clk 0:02:00.9]}
12... h6 {[%clk 0:02:31.7]} 13. Bxf6 {[%clk 0:01:55.4]} 13... Qxf6 {[%clk
0:02:31]} 14. e4 {[%clk 0:01:55.9]} 14... dxe4 {[%clk 0:02:10.3]} 15. Nxe4
{[%clk 0:01:51.2]} 15... Qf4 {[%clk 0:02:09.8]} 16. Nxd6 {[%clk 0:01:43.4]}
16... cxd6 {[%clk 0:02:05.6]} 17. Re4 {[%clk 0:01:28.3]} 17... Qf6 {[%clk
0:02:04.1]} 18. Re3 {[%clk 0:01:28.6]} 18... g5 {[%clk 0:01:39.8]} 19. Nd2
{[%clk 0:01:24.3]} 19... d5 {[%clk 0:01:35.2]} 20. a4 {[%clk 0:00:43.1]} 20...
Re7 {[%clk 0:01:30.2]} 21. Nf3 {[%clk 0:00:35.5]} 21... Bxf3 {[%clk 0:01:21.4]}
22. Rxf3 {[%clk 0:00:36.4]} 22... Qg7 {[%clk 0:01:21.1]} 23. Re1 {[%clk
0:00:31.5]} 23... Rd8 {[%clk 0:01:20.5]} 24. Qc2 {[%clk 0:00:29.4]} 24... f5
{[%clk 0:01:10.9]} 25. Rfe3 {[%clk 0:00:27.5]} 25... Qf6 {[%clk 0:01:07.9]} 26.
Qe2 {[%clk 0:00:21.7]} 26... Kf7 {[%clk 0:00:59]} 27. b4 {[%clk 0:00:20.6]}
27... f4 {[%clk 0:00:56.7]} 28. Qh5+ {[%clk 0:00:18.2]} 28... Kg7 {[%clk
0:00:56.5]} 29. R3e2 {[%clk 0:00:18.3]} 29... e5 {[%clk 0:00:55.3]} 30. b5
{[%clk 0:00:17.6]} 30... e4 {[%clk 0:00:31.2]} 31. bxc6 {[%clk 0:00:17]} 31...
Qxc6 {[%clk 0:00:30.8]} 32. h4 {[%clk 0:00:08.1]} 32... gxh4 {[%clk 0:00:10.3]}
33. Qxh4 {[%clk 0:00:05.8]} 33... Qd6 {[%clk 0:00:11]} 34. Bxe4 {[%clk
0:00:04.8]} 34... dxe4 {[%clk 0:00:11.9]} 35. Rxe4 {[%clk 0:00:05.3]} 35... Rxe4
{[%clk 0:00:11.2]} 36. Rxe4 {[%clk 0:00:06.2]} 36... Rf8 {[%clk 0:00:10.3]} 37.
Re7+ {[%clk 0:00:04.9]} 37... Rf7 {[%clk 0:00:10.9]} 38. Qg4+ {[%clk 0:00:04.3]}
38... Kf8 {[%clk 0:00:10.4]} 39. Qc8+ {[%clk 0:00:03.7]} 39... Kxe7 {[%clk
0:00:09.3]} 40. Qxb7+ {[%clk 0:00:03.2]} 40... Kf6 {[%clk 0:00:09.5]} 41. Qe4
{[%clk 0:00:03.5]} 41... Re7 {[%clk 0:00:08.8]} 42. Qf3 {[%clk 0:00:03.2]} 42...
Rg7 {[%clk 0:00:05.9]} 43. Qh5 {[%clk 0:00:03.4]} 43... Ke7 {[%clk 0:00:03.3]}
44. Qh4+ {[%clk 0:00:03.2]} 44... Qf6 {[%clk 0:00:03.5]} 45. Qh3 {[%clk
0:00:04.1]} 45... f3 {[%clk 0:00:03.8]} 46. g3 {[%clk 0:00:03.9]} 46... Qe6
{[%clk 0:00:03.9]} 47. Qh4+ {[%clk 0:00:04.3]} 47... Kd7 {[%clk 0:00:04.4]} 48.
Kh2 {[%clk 0:00:03.8]} 48... Rf7 {[%clk 0:00:04.2]} 49. Qh5 {[%clk 0:00:03.4]}
49... Qf5 {[%clk 0:00:04.2]} 50. Qh4 {[%clk 0:00:02.7]} 50... Rg7 {[%clk
0:00:04.6]} 51. Kg1 {[%clk 0:00:02.3]} 51... Rg5 {[%clk 0:00:03.6]} 52. Qxh6
{[%clk 0:00:02.3]} 52... Rh5 {[%clk 0:00:04]} 53. Qg7+ {[%clk 0:00:02.9]} 53...
Kd6 {[%clk 0:00:04.6]} 54. Qg8 {[%clk 0:00:01.6]} 54... Qb1# {[%clk 0:00:04]}
0-1

[Event "Early-Titled-Tuesday-Blitz-July-09-2024"]
[Site "Chess.com"]
[Date "2024.07.09"]
[Round "9"]
[White "Goryachkina"]
[Black "Zhigalko_Sergei"]
[Result "0-1"]
[WhiteElo "2683"]
[BlackElo "2922"]
[TimeControl "180+1"]
[EndTime "9:46:33 PDT"]
[Termination "Zhigalko_Sergei won on time"]

1. Nf3 {[%clk 0:02:55.3]} 1... d5 {[%clk 0:03:00.1]} 2. g3 {[%clk 0:02:55.1]}
2... c6 {[%clk 0:02:59.9]} 3. Bg2 {[%clk 0:02:55]} 3... Bg4 {[%clk 0:03:00.2]}
4. O-O {[%clk 0:02:54.8]} 4... e6 {[%clk 0:03:00]} 5. h3 {[%clk 0:02:53.5]} 5...
Bh5 {[%clk 0:02:57.9]} 6. c4 {[%clk 0:02:48.3]} 6... Nf6 {[%clk 0:02:56.9]} 7.
cxd5 {[%clk 0:02:44.2]} 7... exd5 {[%clk 0:02:43.6]} 8. d4 {[%clk 0:02:37.2]}
8... Be7 {[%clk 0:02:11.2]} 9. Nc3 {[%clk 0:02:34.6]} 9... O-O {[%clk
0:02:01.3]} 10. Ne5 {[%clk 0:02:34.3]} 10... Nfd7 {[%clk 0:01:55.8]} 11. g4
{[%clk 0:02:10.2]} 11... Nxe5 {[%clk 0:01:34.6]} 12. dxe5 {[%clk 0:02:09.8]}
12... Bg6 {[%clk 0:01:34.7]} 13. f4 {[%clk 0:02:09.1]} 13... f5 {[%clk
0:01:28.7]} 14. Be3 {[%clk 0:01:40.1]} 14... Kh8 {[%clk 0:01:22.2]} 15. Qb3
{[%clk 0:01:21.3]} 15... Qc8 {[%clk 0:01:00.9]} 16. Rad1 {[%clk 0:01:01.6]}
16... Na6 {[%clk 0:00:41.6]} 17. g5 {[%clk 0:00:54.9]} 17... Nc5 {[%clk
0:00:25.4]} 18. Bxc5 {[%clk 0:00:44]} 18... Bxc5+ {[%clk 0:00:24.7]} 19. Kh1
{[%clk 0:00:44.4]} 19... Bf7 {[%clk 0:00:19.4]} 20. Qc2 {[%clk 0:00:42.8]} 20...
Be7 {[%clk 0:00:14.6]} 21. e3 {[%clk 0:00:41.6]} 21... Qd7 {[%clk 0:00:10.1]}
22. Bf3 {[%clk 0:00:41.5]} 22... Rad8 {[%clk 0:00:09.9]} 23. Ne2 {[%clk
0:00:41.3]} 23... c5 {[%clk 0:00:05.7]} 24. Rd2 {[%clk 0:00:36.9]} 24... Qb5
{[%clk 0:00:04.7]} 25. Rfd1 {[%clk 0:00:35.2]} 25... d4 {[%clk 0:00:03.8]} 26.
exd4 {[%clk 0:00:32.5]} 26... cxd4 {[%clk 0:00:04.7]} 27. Nxd4 {[%clk 0:00:32]}
27... Qa6 {[%clk 0:00:02.9]} 28. Nxf5 {[%clk 0:00:21.5]} 28... Bg6 {[%clk
0:00:02.6]} 29. Rxd8 {[%clk 0:00:15.8]} 29... Bxd8 {[%clk 0:00:02.5]} 30. Be4
{[%clk 0:00:15.3]} 30... Bxf5 {[%clk 0:00:02.5]} 31. Bxf5 {[%clk 0:00:15]} 31...
g6 {[%clk 0:00:03]} 32. Be4 {[%clk 0:00:13.5]} 32... Qxa2 {[%clk 0:00:03.4]} 33.
Qc3 {[%clk 0:00:06.7]} 33... Qe6 {[%clk 0:00:03.3]} 34. Bd5 {[%clk 0:00:06.3]}
34... Qe7 {[%clk 0:00:03.2]} 35. e6+ {[%clk 0:00:06.6]} 35... Kg8 {[%clk
0:00:03.7]} 36. Qe5 {[%clk 0:00:05.1]} 36... Bc7 {[%clk 0:00:04.2]} 37. Qxc7
{[%clk 0:00:04.4]} 37... Qxc7 {[%clk 0:00:03.5]} 38. e7+ {[%clk 0:00:04.9]}
38... Kg7 {[%clk 0:00:04.2]} 39. exf8=Q+ {[%clk 0:00:05]} 39... Kxf8 {[%clk
0:00:05.1]} 40. Rd3 {[%clk 0:00:04.4]} 40... Kg7 {[%clk 0:00:02.4]} 41. Kg2
{[%clk 0:00:04.2]} 41... Qxf4 {[%clk 0:00:01.9]} 42. Bf3 {[%clk 0:00:02.7]}
42... Qxg5+ {[%clk 0:00:02.2]} 43. Kf2 {[%clk 0:00:02.9]} 43... Qh4+ {[%clk
0:00:02]} 44. Ke2 {[%clk 0:00:03.1]} 44... Qe7+ {[%clk 0:00:02.5]} 45. Kf2
{[%clk 0:00:03.1]} 45... Kh6 {[%clk 0:00:03]} 46. b3 {[%clk 0:00:03.3]} 46... b5
{[%clk 0:00:02.9]} 47. Kg2 {[%clk 0:00:03.5]} 47... a5 {[%clk 0:00:03.2]} 48.
Kf2 {[%clk 0:00:03.7]} 48... Qc5+ {[%clk 0:00:03.3]} 49. Ke2 {[%clk 0:00:03.8]}
49... Qc2+ {[%clk 0:00:03.5]} 50. Ke3 {[%clk 0:00:04]} 50... a4 {[%clk
0:00:03.7]} 51. bxa4 {[%clk 0:00:04]} 51... bxa4 {[%clk 0:00:04.6]} 52. Be4
{[%clk 0:00:03.8]} 52... a3 {[%clk 0:00:04.9]} 53. Bd5 {[%clk 0:00:04.1]} 53...
a2 {[%clk 0:00:04.6]} 54. Rd2 {[%clk 0:00:02.6]} 54... Qxd2+ {[%clk 0:00:04.5]}
0-1

[Event "Early-Titled-Tuesday-Blitz-July-09-2024"]
[Site "Chess.com"]
[Date "2024.07.09"]
[Round "9"]
[White "Ganziitoo"]
[Black "esskeettit"]
[Result "1-0"]
[WhiteElo "2361"]
[BlackElo "2528"]
[TimeControl "180+1"]
[EndTime "9:46:33 PDT"]
[Termination "Ganziitoo won by checkmate"]

1. e4 {[%clk 0:02:56.4]} 1... c5 {[%clk 0:03:00]} 2. Nf3 {[%clk 0:02:56.8]} 2...
Nc6 {[%clk 0:03:00.3]} 3. d4 {[%clk 0:02:57.5]} 3... cxd4 {[%clk 0:03:01.2]} 4.
Nxd4 {[%clk 0:02:58.4]} 4... g6 {[%clk 0:03:01.2]} 5. c4 {[%clk 0:02:58.3]} 5...
Nf6 {[%clk 0:03:00.6]} 6. Nc3 {[%clk 0:02:58.3]} 6... d6 {[%clk 0:03:00.7]} 7.
Be2 {[%clk 0:02:58.2]} 7... Nxd4 {[%clk 0:03:00.9]} 8. Qxd4 {[%clk 0:02:58.1]}
8... Bg7 {[%clk 0:03:01.6]} 9. Be3 {[%clk 0:02:57.8]} 9... O-O {[%clk
0:03:01.8]} 10. Qd3 {[%clk 0:02:58.5]} 10... Bd7 {[%clk 0:02:56.4]} 11. O-O
{[%clk 0:02:58.6]} 11... Qa5 {[%clk 0:02:56.8]} 12. Bd4 {[%clk 0:02:52]} 12...
Rfd8 {[%clk 0:02:55.5]} 13. h3 {[%clk 0:02:46.9]} 13... Bc6 {[%clk 0:02:55]} 14.
f4 {[%clk 0:02:37.6]} 14... Rac8 {[%clk 0:02:25.3]} 15. a3 {[%clk 0:01:53.3]}
15... a6 {[%clk 0:02:09.6]} 16. b4 {[%clk 0:01:53.1]} 16... Qc7 {[%clk 0:02:10]}
17. b5 {[%clk 0:01:47.8]} 17... axb5 {[%clk 0:02:08]} 18. cxb5 {[%clk
0:01:48.7]} 18... Be8 {[%clk 0:01:52.7]} 19. b6 {[%clk 0:01:26.9]} 19... Qc6
{[%clk 0:01:31.3]} 20. Rfc1 {[%clk 0:01:27.2]} 20... e5 {[%clk 0:01:27.9]} 21.
Bf2 {[%clk 0:01:18.7]} 21... exf4 {[%clk 0:01:21.6]} 22. Nd5 {[%clk 0:01:15.7]}
22... Qxc1+ {[%clk 0:01:20.5]} 23. Rxc1 {[%clk 0:01:16.6]} 23... Rxc1+ {[%clk
0:01:19.6]} 24. Kh2 {[%clk 0:01:17.3]} 24... Nxd5 {[%clk 0:01:02.8]} 25. exd5
{[%clk 0:01:18.2]} 25... Be5 {[%clk 0:01:00.4]} 26. Bf3 {[%clk 0:01:18.7]} 26...
Rdc8 {[%clk 0:00:52]} 27. Bd4 {[%clk 0:01:16.7]} 27... Bb5 {[%clk 0:00:47.4]}
28. Qd2 {[%clk 0:00:45.5]} 28... R8c2 {[%clk 0:00:43.2]} 29. Qb4 {[%clk
0:00:46]} 29... Rc4 {[%clk 0:00:32.3]} 30. Qxb5 {[%clk 0:00:44.8]} 30... Bxd4
{[%clk 0:00:32.3]} 31. h4 {[%clk 0:00:44.1]} 31... Bf2 {[%clk 0:00:26.1]} 32. h5
{[%clk 0:00:34.7]} 32... Bg3+ {[%clk 0:00:20.1]} 33. Kh3 {[%clk 0:00:35.1]}
33... Rh1+ {[%clk 0:00:18.9]} 34. Kg4 {[%clk 0:00:35.7]} 34... gxh5+ {[%clk
0:00:14]} 35. Kg5 {[%clk 0:00:31.4]} 35... Kg7 {[%clk 0:00:13.7]} 36. Qxc4
{[%clk 0:00:28.7]} 36... Re1 {[%clk 0:00:09.6]} 37. Be4 {[%clk 0:00:14.5]} 37...
h6+ {[%clk 0:00:04.5]} 38. Kf5 {[%clk 0:00:10.4]} 38... h4 {[%clk 0:00:05]} 39.
Qc3+ {[%clk 0:00:09]} 39... Kf8 {[%clk 0:00:04.4]} 40. Qc8+ {[%clk 0:00:09]}
40... Kg7 {[%clk 0:00:04.5]} 41. Qxb7 {[%clk 0:00:07.1]} 41... h3 {[%clk
0:00:04.2]} 42. gxh3 {[%clk 0:00:06.9]} 42... f3 {[%clk 0:00:03.3]} 43. Bxf3
{[%clk 0:00:05.3]} 43... Re5+ {[%clk 0:00:03.9]} 44. Kg4 {[%clk 0:00:05.9]}
44... Bh2 {[%clk 0:00:04]} 45. h4 {[%clk 0:00:05]} 45... h5+ {[%clk 0:00:03.5]}
46. Kh3 {[%clk 0:00:05.1]} 46... Bf4 {[%clk 0:00:03.9]} 47. Qc6 {[%clk
0:00:05.3]} 47... Re3 {[%clk 0:00:03.7]} 48. Kg2 {[%clk 0:00:06]} 48... Rd3
{[%clk 0:00:03.5]} 49. b7 {[%clk 0:00:06.1]} 49... Be5 {[%clk 0:00:03.8]} 50.
b8=Q {[%clk 0:00:05.9]} 50... Rd2+ {[%clk 0:00:04.4]} 51. Kf1 {[%clk 0:00:06.2]}
51... Ra2 {[%clk 0:00:03.8]} 52. Qc1 {[%clk 0:00:04.8]} 52... Rh2 {[%clk
0:00:02.8]} 53. Bg2 {[%clk 0:00:04.2]} 53... Rxh4 {[%clk 0:00:02.9]} 54. Qg5+
{[%clk 0:00:04.4]} 54... Kh7 {[%clk 0:00:02.7]} 55. Qbg8# {[%clk 0:00:05.1]} 1-0

[Event "Early-Titled-Tuesday-Blitz-July-09-2024"]
[Site "Chess.com"]
[Date "2024.07.09"]
[Round "9"]
[White "SujanaLohani"]
[Black "Barmen_EV"]
[Result "1-0"]
[WhiteElo "2370"]
[BlackElo "2501"]
[TimeControl "180+1"]
[EndTime "9:46:34 PDT"]
[Termination "SujanaLohani won by checkmate"]

1. e4 {[%clk 0:03:00.9]} 1... e6 {[%clk 0:02:57.3]} 2. d4 {[%clk 0:02:59.4]}
2... d5 {[%clk 0:02:57.8]} 3. Nd2 {[%clk 0:02:59.1]} 3... a6 {[%clk 0:02:57.5]}
4. Ngf3 {[%clk 0:02:57.6]} 4... c5 {[%clk 0:02:56.6]} 5. exd5 {[%clk 0:02:56]}
5... exd5 {[%clk 0:02:56.3]} 6. dxc5 {[%clk 0:02:50.5]} 6... Bxc5 {[%clk
0:02:57.2]} 7. Bd3 {[%clk 0:02:50.3]} 7... Nc6 {[%clk 0:02:56.3]} 8. O-O {[%clk
0:02:50.3]} 8... Nge7 {[%clk 0:02:56.4]} 9. Nb3 {[%clk 0:02:50.1]} 9... Bb6
{[%clk 0:02:56.1]} 10. Re1 {[%clk 0:02:50.6]} 10... O-O {[%clk 0:02:55.1]} 11.
Ng5 {[%clk 0:02:46.9]} 11... Bf5 {[%clk 0:02:26.3]} 12. c3 {[%clk 0:02:43.6]}
12... h6 {[%clk 0:02:16.4]} 13. Nf3 {[%clk 0:02:41.3]} 13... Bg4 {[%clk
0:02:12.7]} 14. h3 {[%clk 0:02:39.7]} 14... Bh5 {[%clk 0:02:12.7]} 15. Bf4
{[%clk 0:02:38.7]} 15... Qd7 {[%clk 0:01:55.4]} 16. Bc2 {[%clk 0:02:09.8]} 16...
Rfe8 {[%clk 0:01:38.4]} 17. Ne5 {[%clk 0:02:06.3]} 17... Bxd1 {[%clk 0:01:33]}
18. Nxd7 {[%clk 0:02:04.6]} 18... Bxc2 {[%clk 0:01:32.1]} 19. Nxb6 {[%clk
0:02:04.5]} 19... Ra7 {[%clk 0:01:28.1]} 20. Nxd5 {[%clk 0:01:51.8]} 20... b5
{[%clk 0:01:23.1]} 21. Bd6 {[%clk 0:01:48.5]} 21... Rd7 {[%clk 0:01:18.7]} 22.
Nxe7+ {[%clk 0:01:45.4]} 22... Nxe7 {[%clk 0:01:17.9]} 23. Bb4 {[%clk
0:01:45.7]} 23... f6 {[%clk 0:01:11.4]} 24. Nc5 {[%clk 0:01:44.5]} 24... Ra7
{[%clk 0:01:09.9]} 25. Rac1 {[%clk 0:01:28.4]} 25... Bg6 {[%clk 0:01:08.6]} 26.
Rcd1 {[%clk 0:01:22.1]} 26... a5 {[%clk 0:01:04.9]} 27. Ba3 {[%clk 0:01:21.8]}
27... Nc6 {[%clk 0:01:03.7]} 28. Rxe8+ {[%clk 0:01:01.1]} 28... Bxe8 {[%clk
0:01:04.6]} 29. Nd3 {[%clk 0:00:46.5]} 29... Rd7 {[%clk 0:01:03.8]} 30. b3
{[%clk 0:00:41.9]} 30... b4 {[%clk 0:00:49.6]} 31. cxb4 {[%clk 0:00:31.5]} 31...
axb4 {[%clk 0:00:50.5]} 32. Bc1 {[%clk 0:00:30]} 32... Nd4 {[%clk 0:00:50.9]}
33. Kf1 {[%clk 0:00:26.9]} 33... Rd5 {[%clk 0:00:34.1]} 34. Nxb4 {[%clk
0:00:22.1]} 34... Bb5+ {[%clk 0:00:34.2]} 35. Ke1 {[%clk 0:00:20.7]} 35... Nc2+
{[%clk 0:00:34.4]} 36. Nxc2 {[%clk 0:00:19.9]} 36... Re5+ {[%clk 0:00:34.9]} 37.
Be3 {[%clk 0:00:19.1]} 37... Bc6 {[%clk 0:00:33.1]} 38. g3 {[%clk 0:00:17.9]}
38... Bf3 {[%clk 0:00:32.3]} 39. Rd8+ {[%clk 0:00:16.6]} 39... Kf7 {[%clk
0:00:31.8]} 40. Nd4 {[%clk 0:00:17.2]} 40... Be4 {[%clk 0:00:29.6]} 41. h4
{[%clk 0:00:17.2]} 41... h5 {[%clk 0:00:29.7]} 42. Rd7+ {[%clk 0:00:17.2]} 42...
Kg6 {[%clk 0:00:29.2]} 43. Kd2 {[%clk 0:00:17.7]} 43... Ra5 {[%clk 0:00:28.6]}
44. a4 {[%clk 0:00:17.1]} 44... Ra8 {[%clk 0:00:29.5]} 45. Ne6 {[%clk
0:00:16.8]} 45... Kf5 {[%clk 0:00:26.2]} 46. Nxg7+ {[%clk 0:00:14.3]} 46... Kg4
{[%clk 0:00:25.8]} 47. Ne6 {[%clk 0:00:13.3]} 47... Bf5 {[%clk 0:00:24.9]} 48.
Rg7+ {[%clk 0:00:13.3]} 48... Kh3 {[%clk 0:00:25]} 49. Nd4 {[%clk 0:00:12.7]}
49... Be4 {[%clk 0:00:23.3]} 50. f3 {[%clk 0:00:13]} 50... Bd5 {[%clk
0:00:23.4]} 51. g4 {[%clk 0:00:12.6]} 51... hxg4 {[%clk 0:00:23]} 52. fxg4
{[%clk 0:00:11.9]} 52... Kxh4 {[%clk 0:00:21]} 53. g5 {[%clk 0:00:12.4]} 53...
fxg5 {[%clk 0:00:19.5]} 54. Bxg5+ {[%clk 0:00:12.9]} 54... Kg4 {[%clk
0:00:20.4]} 55. Be3+ {[%clk 0:00:12.2]} 55... Kh5 {[%clk 0:00:20.3]} 56. Rg5+
{[%clk 0:00:12.2]} 56... Kh4 {[%clk 0:00:20.9]} 57. Rxd5 {[%clk 0:00:12.8]}
57... Rg8 {[%clk 0:00:20.1]} 58. Nf3+ {[%clk 0:00:12.4]} 58... Kh3 {[%clk
0:00:19.7]} 59. Rh5+ {[%clk 0:00:12.8]} 59... Kg2 {[%clk 0:00:19.7]} 60. Rg5+
{[%clk 0:00:13.7]} 60... Kf1 {[%clk 0:00:19.4]} 61. Nh2# {[%clk 0:00:08]} 1-0

[Event "Early-Titled-Tuesday-Blitz-July-09-2024"]
[Site "Chess.com"]
[Date "2024.07.09"]
[Round "9"]
[White "Lion-Al-Messi"]
[Black "Ratkovic_Miloje"]
[Result "1-0"]
[WhiteElo "2677"]
[BlackElo "2780"]
[TimeControl "180+1"]
[EndTime "9:46:35 PDT"]
[Termination "Lion-Al-Messi won by checkmate"]

1. e4 {[%clk 0:03:00.9]} 1... e6 {[%clk 0:03:00.9]} 2. d4 {[%clk 0:03:00.3]}
2... a6 {[%clk 0:03:00]} 3. Nf3 {[%clk 0:02:59.3]} 3... d5 {[%clk 0:02:58.2]} 4.
exd5 {[%clk 0:02:59.9]} 4... exd5 {[%clk 0:02:58.2]} 5. Bd3 {[%clk 0:03:00.3]}
5... Nf6 {[%clk 0:02:57.7]} 6. Be3 {[%clk 0:02:59.8]} 6... Be7 {[%clk
0:02:58.2]} 7. Nc3 {[%clk 0:02:59.7]} 7... O-O {[%clk 0:02:58.8]} 8. h3 {[%clk
0:02:59.4]} 8... Nc6 {[%clk 0:02:55.3]} 9. g4 {[%clk 0:02:58.1]} 9... Nb4 {[%clk
0:02:53.6]} 10. Be2 {[%clk 0:02:58.1]} 10... Ne4 {[%clk 0:02:52.6]} 11. Ne5
{[%clk 0:02:55.4]} 11... f6 {[%clk 0:02:48.2]} 12. Nd3 {[%clk 0:02:55.3]} 12...
f5 {[%clk 0:02:44.8]} 13. a3 {[%clk 0:02:45.6]} 13... Nxd3+ {[%clk 0:02:42]} 14.
cxd3 {[%clk 0:02:45.5]} 14... f4 {[%clk 0:02:30]} 15. dxe4 {[%clk 0:02:40.5]}
15... fxe3 {[%clk 0:02:29.1]} 16. fxe3 {[%clk 0:02:41.4]} 16... Bg5 {[%clk
0:02:22.2]} 17. Qd3 {[%clk 0:02:39]} 17... c5 {[%clk 0:02:07.9]} 18. Nxd5 {[%clk
0:02:36.5]} 18... cxd4 {[%clk 0:02:07.9]} 19. exd4 {[%clk 0:02:35.9]} 19... Be6
{[%clk 0:02:06.6]} 20. Rf1 {[%clk 0:02:29.9]} 20... Bxd5 {[%clk 0:01:48.3]} 21.
exd5 {[%clk 0:02:27.7]} 21... Qd6 {[%clk 0:01:33.6]} 22. Rf5 {[%clk 0:02:03.6]}
22... Rxf5 {[%clk 0:01:16.7]} 23. gxf5 {[%clk 0:02:04.5]} 23... Re8 {[%clk
0:01:14.7]} 24. Qc4 {[%clk 0:01:50.5]} 24... Qg3+ {[%clk 0:01:01.4]} 25. Kd1
{[%clk 0:01:50]} 25... Qe3 {[%clk 0:00:59.1]} 26. Qd3 {[%clk 0:01:46.8]} 26...
Qg1+ {[%clk 0:00:56.5]} 27. Bf1 {[%clk 0:01:46.7]} 27... Qf2 {[%clk 0:00:50.3]}
28. Be2 {[%clk 0:01:43.1]} 28... Bh4 {[%clk 0:00:34.9]} 29. Kd2 {[%clk
0:01:41.6]} 29... Bg5+ {[%clk 0:00:30.9]} 30. Kd1 {[%clk 0:01:41.6]} 30... b5
{[%clk 0:00:30.7]} 31. f6 {[%clk 0:01:13.1]} 31... gxf6 {[%clk 0:00:27.8]} 32.
d6 {[%clk 0:01:05]} 32... Re3 {[%clk 0:00:26.7]} 33. Qd2 {[%clk 0:00:54.2]}
33... Re6 {[%clk 0:00:13]} 34. d7 {[%clk 0:00:49]} 34... Bxd2 {[%clk 0:00:04.9]}
35. d8=Q+ {[%clk 0:00:48.5]} 35... Kf7 {[%clk 0:00:04.5]} 36. Bh5+ {[%clk
0:00:38.1]} 36... Kg7 {[%clk 0:00:04.9]} 37. Qd7+ {[%clk 0:00:37.6]} 37... Kh6
{[%clk 0:00:05.2]} 38. Qxe6 {[%clk 0:00:37.6]} 38... Bg5 {[%clk 0:00:04.5]} 39.
Qe2 {[%clk 0:00:28.7]} 39... Qg1+ {[%clk 0:00:04.8]} 40. Qe1 {[%clk 0:00:25.3]}
40... Qxd4+ {[%clk 0:00:05.3]} 41. Kc2 {[%clk 0:00:23.2]} 41... Qc4+ {[%clk
0:00:03.2]} 42. Qc3 {[%clk 0:00:19.7]} 42... Qe4+ {[%clk 0:00:03.8]} 43. Qd3
{[%clk 0:00:18.6]} 43... Qg2+ {[%clk 0:00:03.8]} 44. Be2 {[%clk 0:00:17.9]}
44... Qc6+ {[%clk 0:00:04.4]} 45. Kb3 {[%clk 0:00:15.2]} 45... a5 {[%clk
0:00:04.8]} 46. Ka2 {[%clk 0:00:14.2]} 46... Qe6+ {[%clk 0:00:03.9]} 47. b3
{[%clk 0:00:14.4]} 47... a4 {[%clk 0:00:04.3]} 48. Rb1 {[%clk 0:00:14.9]} 48...
Bf4 {[%clk 0:00:03.7]} 49. h4 {[%clk 0:00:14.5]} 49... Be5 {[%clk 0:00:02.9]}
50. h5 {[%clk 0:00:14.5]} 50... Qb6 {[%clk 0:00:01.4]} 51. bxa4 {[%clk
0:00:13.4]} 51... Qe6+ {[%clk 0:00:01.9]} 52. Qb3 {[%clk 0:00:13.7]} 52... Qf5
{[%clk 0:00:01.2]} 53. axb5 {[%clk 0:00:10.8]} 53... Bf4 {[%clk 0:00:01.6]} 54.
Bd3 {[%clk 0:00:09.6]} 54... Qg5 {[%clk 0:00:02.2]} 55. Qf7 {[%clk 0:00:08.8]}
55... Be5 {[%clk 0:00:02.9]} 56. Qxh7# {[%clk 0:00:08.5]} 1-0